[Event "Vasteras Open 2018"]
[Site "Vasteras"]
[Date "2018.09.30"]
[Round "8"]
[White "Cramling, Pia"]
[Black "Miezis, Normunds"]
[Result "1/2-1/2"]
[ECO "A04"]
[WhiteElo "2465"]
[BlackElo "2470"]
[Annotator "RC"]
[PlyCount "98"]
[EventDate "2018.09.28"]
[EventCountry "SWE"]
[TimeControl "5400+30"]

1. Nf3 {[%emt 0:01:10]} e6 {[%emt 0:00:58]} 2. c4 {[%emt 0:02:01]} b6 {[%emt 0:00:52]} 3. g3 {[%emt 0:00:26]} Bb7 {[%emt 0:00:21]} 4. Bg2 {[%emt 0:00:05]} f5 {[%emt 0:00:54]} 5. O-O {[%emt 0:00:39]} Nf6 {[%emt 0:00:48]} 6. Nc3 {[%emt 0:01:10]} Be7 {[%emt 0:03:02]} 7. d3 {[%emt 0:02:36]} O-O {[%emt 0:04:57]} 8. e4 {[%emt 0:02:25]} fxe4 {[%emt 0:04:38]} 9. Ng5 {[%emt 0:00:36]} Nc6 {[%emt 0:05:18]} 10. Ngxe4 {[%emt 0:01:50]} Nxe4 {[%emt 0:03:06]} 11. Bxe4 {[%emt 0:02:40]} Na5 {[%emt 0:01:41]} 12. Qe2 {[%emt 0:02:10]} c5 {[%emt 0:17:45]} 13. Bxb7 {[%emt 0:08:43]} Nxb7 {[%emt 0:01:37]} 14. Be3 {[%emt 0:00:35]} Nd6 {[%emt 0:05:52]} 15. d4 {[%emt 0:08:27]} Nf5 {[%emt 0:01:15]} 16. Rad1 {[%emt 0:02:00]} Rc8 {[%emt 0:13:22]} 17. d5 {[%emt 0:12:24]} Qe8 {[%emt 0:01:05]} 18. Ne4 {[%emt 0:04:06]} Qg6 {[%emt 0:03:27]} 19. f3 {[%emt 0:01:51]} Rf7 {[%emt 0:02:00]} 20. dxe6 {[%emt 0:03:31]} dxe6 {[%emt 0:00:13]} 21. Kh1 {[%emt 0:01:30]} Rcf8 {[%emt 0:04:46]} 22. Bg1 {[%emt 0:02:25]} h5 {[%emt 0:03:54]} 23. Rd7 {[%emt 0:03:04]} Bf6 {[%emt 0:01:08]} 24. Rxf7 {[%emt 0:05:06]} Rxf7 {[%emt 0:00:47]} 25. Nxf6+ {[%emt 0:03:40]} Qxf6 {[%emt 0:01:51]} 26. Rd1 {[%emt 0:05:30]} e5 {[%emt 0:02:48]} 27. Rd5 {[%emt 0:01:09]} h4 {[%emt 0:02:01]} 28. Qxe5 {[%emt 0:05:09]} Qxe5 {[%emt 0:03:17]} 29. Rxe5 {[%emt 0:00:02]} hxg3 {[%emt 0:00:13]} 30. hxg3 {[%emt 0:01:09]} Nxg3+ {[%emt 0:00:07]} 31. Kg2 {[%emt 0:00:07]} Nf5 {[%emt 0:00:08]} 32. Bf2 {[%emt 0:00:32]} g6 {[%emt 0:00:28]} 33. a3 {[%emt 0:01:27]} Rc7 {[%emt 0:01:41]} 34. Kh3 {[%emt 0:02:04]} Kf7 {[%emt 0:00:41]} 35. Kg4 {[%emt 0:00:47]} Rd7 {[%emt 0:02:30]} 36. Re2 {[%emt 0:02:48]} Rd3 {[%emt 0:01:07]} 37. b4 {[%emt 0:02:08]} Nd4 {[%emt 0:01:25]} 38. Re4 {[%emt 0:00:44]} Ne6 {[%emt 0:00:51]} 39. bxc5 {[%emt 0:03:13]} bxc5 {[%emt 0:00:14]} 40. f4 {[%emt 0:01:00]} Rxa3 {[%emt 0:01:21]} 41. Re5 {[%emt 0:00:42]} Rc3 {[%emt 0:01:49]} 42. Bxc5 {[%emt 0:00:16]} a5 {[%emt 0:00:30]} 43. Bd6 {[%emt 0:01:05]} a4 {[%emt 0:00:22]} 44. Ra5 {[%emt 0:00:32]} Rxc4 {[%emt 0:00:39]} 45. Ra7+ {[%emt 0:00:33]} Kg8 {[%emt 0:00:24]} 46. Ra8+ {[%emt 0:01:36]} Kf7 {[%emt 0:00:16]} 47. Ra7+ {[%emt 0:00:06]} Kg8 {[%emt 0:00:08]} 48. Ra8+ {[%emt 0:00:17]} Kf7 {[%emt 0:00:08]} 49. Ra7+ {[%emt 0:01:08]} Kg8 {[%emt 0:00:12]} 1/2-1/2

[Event "Vasteras Open 2018"]
[Site "Vasteras"]
[Date "2018.09.30"]
[Round "8"]
[White "Lindberg, Bengt"]
[Black "Lundin, Jan"]
[Result "1-0"]
[ECO "B80"]
[WhiteElo "2406"]
[BlackElo "2288"]
[Annotator "NA"]
[PlyCount "66"]
[EventDate "2018.09.28"]
[EventCountry "SWE"]
[SourceTitle "playchess.com"]
[Source "ChessBase"]
[SourceQuality "1"]
[TimeControl "5400+30"]

1. e4 {[%emt 0:00:00]} c5 {[%emt 0:00:00]} 2. Nf3 {[%emt 0:00:00]} e6 {[%emt 0:00:00]} 3. d4 {[%emt 0:00:05]} cxd4 {[%emt 0:00:00]} 4. Nxd4 {[%emt 0:00:06]} Nf6 {[%emt 0:00:00]} 5. Nc3 {[%emt 0:00:09]} d6 {[%emt 0:00:00]} 6. Be3 {[%emt 0:00:29]} Be7 {[%emt 0:00:00]} 7. f3 {[%emt 0:00:24]} h5 {[%emt 0:01:10]} 8. Qd2 {[%emt 0:01:01]} a6 {[%emt 0:04:53]} 9. O-O-O {[%emt 0:00:35]} Nc6 {[%emt 0:01:27]} 10. h3 {[%emt 0:01:46]} Bd7 {[%emt 0:03:02]} 11. Rg1 {[%emt 0:00:35]} h4 {[%emt 0:01:31]} 12. f4 {[%emt 0:05:21]} Qc7 {[%emt 0:11:58]} 13. Kb1 {[%emt 0:04:26]} Rc8 {[%emt 0:03:40]} 14. Bd3 {[%emt 0:07:31]} Na5 {[%emt 0:03:36]} 15. Nf3 {[%emt 0:15:31]} b5 {[%emt 0:10:30]} 16. Qf2 {[%emt 0:14:19]} b4 {[%emt 0:02:50]} 17. Ne2 {[%emt 0:04:49]} Nc4 {[%emt 0:05:25]} 18. Ned4 {[%emt 0:02:30]} Nxe3 {[%emt 0:20:47]} 19. Qxe3 {[%emt 0:00:13]} e5 {[%emt 0:00:34]} 20. Nb3 {[%emt 0:12:46]} a5 {[%emt 0:00:30]} 21. Nbd2 {[%emt 0:08:40]} Nh5 {[%emt 0:04:03]} 22. f5 {[%emt 0:01:59]} Nf4 {[%emt 0:04:27]} 23. Nc4 {[%emt 0:01:37]} Ba4 {[%emt 0:03:59]} 24. Rc1 {[%emt 0:03:05]} Rb8 {[%emt 0:03:33]} 25. Qd2 {[%emt 0:01:01]} Bc6 {[%emt 0:00:57]} 26. Rge1 {[%emt 0:02:03]} a4 {[%emt 0:01:11]} 27. Ne3 {[%emt 0:00:24]} Qb7 {[%emt 0:01:30]} 28. Ng4 {[%emt 0:03:50]} Bd8 {[%emt 0:05:20]} 29. Bc4 {[%emt 0:01:00]} Bc7 {[%emt 0:00:42]} 30. Ng5 {[%emt 0:00:46]} O-O {[%emt 0:01:49]} 31. Qf2 {[%emt 0:00:37]} Bd8 {[%emt 0:01:44]} 32. Qxh4 {[%emt 0:00:29]} Bxg5 {[%emt 0:00:39]} 33. Qxg5 {[%emt 0:00:06]} Rfc8 {[%emt 0:00:58]} 1-0

[Event "Vasteras Open 2018"]
[Site "Vasteras"]
[Date "2018.09.30"]
[Round "8"]
[White "Sjodahl, Pontus"]
[Black "Tiger-Norqvist, Axel"]
[Result "1-0"]
[ECO "E81"]
[WhiteElo "2405"]
[BlackElo "2175"]
[Annotator "NA"]
[PlyCount "73"]
[EventDate "2018.09.28"]
[EventCountry "SWE"]
[SourceTitle "playchess.com"]
[Source "ChessBase"]
[SourceQuality "1"]
[TimeControl "5400+30"]

1. d4 {[%emt 0:00:00]} Nf6 {[%emt 0:00:00]} 2. c4 {[%emt 0:00:00]} g6 {[%emt 0:00:00]} 3. Nc3 {[%emt 0:00:00]} Bg7 {[%emt 0:00:00]} 4. e4 {[%emt 0:00:08]} d6 {[%emt 0:00:07]} 5. f3 {[%emt 0:00:15]} O-O {[%emt 0:00:13]} 6. Be3 {[%emt 0:00:06]} c5 {[%emt 0:00:10]} 7. d5 {[%emt 0:04:24]} e6 {[%emt 0:00:32]} 8. Nge2 {[%emt 0:00:43]} exd5 {[%emt 0:01:51]} 9. cxd5 {[%emt 0:00:07]} Nbd7 {[%emt 0:13:18]} 10. Ng3 {[%emt 0:07:20]} h5 {[%emt 0:00:22]} 11. Be2 {[%emt 0:03:16]} Ne5 {[%emt 0:06:19]} 12. O-O {[%emt 0:02:01]} Nh7 {[%emt 0:02:35]} 13. Qd2 {[%emt 0:04:20]} Re8 {[%emt 0:01:33]} 14. Rab1 {[%emt 0:10:19]} h4 {[%emt 0:02:03]} 15. Nh1 {[%emt 0:00:17]} f5 {[%emt 0:00:10]} 16. Nf2 {[%emt 0:01:56]} Nf7 {[%emt 0:01:08]} 17. b4 {[%emt 0:08:08]} b6 {[%emt 0:00:44]} 18. Bb5 {[%emt 0:03:20]} Bd7 {[%emt 0:01:49]} 19. a4 {[%emt 0:06:56]} Bxb5 {[%emt 0:04:02]} 20. Nxb5 {[%emt 0:00:47]} Ne5 {[%emt 0:02:10]} 21. Bh6 {[%emt 0:07:48]} Bf6 {[%emt 0:06:06]} 22. exf5 {[%emt 0:04:16]} gxf5 {[%emt 0:01:16]} 23. Qc2 {[%emt 0:04:20]} Qd7 {[%emt 0:01:33]} 24. bxc5 {[%emt 0:00:36]} bxc5 {[%emt 0:00:17]} 25. Nh3 {[%emt 0:00:45]} a6 {[%emt 0:04:40]} 26. Na3 {[%emt 0:00:50]} c4 {[%emt 0:01:50]} 27. Nxc4 {[%emt 0:04:38]} Rac8 {[%emt 0:09:41]} 28. Nxe5 {[%emt 0:00:53]} Bxe5 {[%emt 0:01:25]} 29. Qd3 {[%emt 0:00:57]} Rc5 {[%emt 0:10:03]} 30. Qxa6 {[%emt 0:04:10]} Rxd5 {[%emt 0:01:48]} 31. Qc4 {[%emt 0:02:29]} Qe6 {[%emt 0:00:23]} 32. Qxh4 {[%emt 0:01:14]} Rd4 {[%emt 0:02:01]} 33. Qh5 {[%emt 0:04:01]} Rxa4 {[%emt 0:01:09]} 34. Rb7 {[%emt 0:03:33]} Bd4+ {[%emt 0:00:52]} 35. Kh1 {[%emt 0:00:19]} Ra1 {[%emt 0:00:21]} 36. Bc1 {[%emt 0:02:02]} Bg7 {[%emt 0:03:18]} 37. Rxg7+ {[%emt 0:00:27]} 1-0

[Event "Vasteras Open 2018"]
[Site "Vasteras"]
[Date "2018.09.30"]
[Round "8"]
[White "Krupenski, Juri"]
[Black "Johannesson, Oliver"]
[Result "1-0"]
[ECO "B40"]
[WhiteElo "2402"]
[BlackElo "2284"]
[Annotator "NA"]
[PlyCount "79"]
[EventDate "2018.09.28"]
[EventCountry "SWE"]
[SourceTitle "playchess.com"]
[Source "ChessBase"]
[SourceQuality "1"]
[TimeControl "5400+30"]

1. e4 {[%emt 0:00:00]} c5 {[%emt 0:00:00]} 2. Nf3 {[%emt 0:00:00]} e6 {[%emt 0:02:04]} 3. c3 {[%emt 0:00:00]} d5 {[%emt 0:00:17]} 4. exd5 {[%emt 0:00:05]} exd5 {[%emt 0:00:04]} 5. d4 {[%emt 0:00:13]} Nc6 {[%emt 0:00:10]} 6. Bb5 {[%emt 0:00:16]} Nf6 {[%emt 0:01:48]} 7. O-O {[%emt 0:00:07]} Bd6 {[%emt 0:02:19]} 8. dxc5 {[%emt 0:12:26]} Bxc5 {[%emt 0:00:16]} 9. Bg5 {[%emt 0:00:22]} Be6 {[%emt 0:07:44]} 10. Nbd2 {[%emt 0:21:29]} O-O {[%emt 0:05:04]} 11. Nb3 {[%emt 0:00:16]} Bd6 {[%emt 0:14:48]} 12. Nbd4 {[%emt 0:01:47]} Rc8 {[%emt 0:22:19]} 13. Re1 {[%emt 0:05:35]} Bg4 {[%emt 0:02:53]} 14. Qa4 {[%emt 0:03:25]} Nxd4 {[%emt 0:08:06]} 15. Nxd4 {[%emt 0:01:10]} a6 {[%emt 0:05:17]} 16. Bd3 {[%emt 0:01:01]} h6 {[%emt 0:02:20]} 17. Bh4 {[%emt 0:00:44]} Bd7 {[%emt 0:08:33]} 18. Qd1 {[%emt 0:00:24]} g5 {[%emt 0:03:39]} 19. Bg3 {[%emt 0:00:14]} Bxg3 {[%emt 0:00:23]} 20. hxg3 {[%emt 0:00:37]} Bg4 {[%emt 0:03:00]} 21. Qd2 {[%emt 0:04:11]} Qd6 {[%emt 0:02:28]} 22. f3 {[%emt 0:08:56]} Bd7 {[%emt 0:00:41]} 23. g4 {[%emt 0:00:21]} Rfe8 {[%emt 0:01:56]} 24. Bf5 {[%emt 0:00:50]} Rxe1+ {[%emt 0:01:36]} 25. Rxe1 {[%emt 0:00:08]} Re8 {[%emt 0:00:39]} 26. Bxd7 {[%emt 0:00:48]} Qxd7 {[%emt 0:00:49]} 27. Rxe8+ {[%emt 0:01:37]} Qxe8 {[%emt 0:01:17]} 28. Nf5 {[%emt 0:00:09]} Kh7 {[%emt 0:00:26]} 29. Kf2 {[%emt 0:02:28]} Qb5 {[%emt 0:02:15]} 30. Qd4 {[%emt 0:07:13]} Qc6 {[%emt 0:01:18]} 31. Qb4 {[%emt 0:03:06]} Nd7 {[%emt 0:00:29]} 32. Qd6 {[%emt 0:03:22]} Qc5+ {[%emt 0:00:31]} 33. Ke2 {[%emt 0:00:49]} Qb5+ {[%emt 0:00:30]} 34. Ke1 {[%emt 0:00:58]} Qc6 {[%emt 0:00:25]} 35. Kd2 {[%emt 0:00:59]} Nb6 {[%emt 0:00:32]} 36. Qxc6 {[%emt 0:03:19]} bxc6 {[%emt 0:00:02]} 37. Kd3 {[%emt 0:00:15]} c5 {[%emt 0:01:00]} 38. b4 {[%emt 0:00:07]} c4+ {[%emt 0:00:23]} 39. Kd4 {[%emt 0:00:06]} f6 {[%emt 0:00:34]} 40. Ne7 {[%emt 0:00:15]} 1-0

[Event "Vasteras Open 2018"]
[Site "Vasteras"]
[Date "2018.09.30"]
[Round "8"]
[White "Lokander, Martin"]
[Black "Storme, Isak"]
[Result "1-0"]
[ECO "A28"]
[WhiteElo "2384"]
[BlackElo "2260"]
[Annotator "NA"]
[PlyCount "59"]
[EventDate "2018.09.28"]
[EventCountry "SWE"]
[SourceTitle "playchess.com"]
[Source "ChessBase"]
[SourceQuality "1"]
[TimeControl "5400+30"]

1. c4 {[%emt 0:00:00]} e5 {[%emt 0:00:00]} 2. Nc3 {[%emt 0:00:00]} Nf6 {[%emt 0:00:32]} 3. Nf3 {[%emt 0:00:00]} Nc6 {[%emt 0:00:05]} 4. e3 {[%emt 0:00:00]} Bb4 {[%emt 0:01:03]} 5. Qc2 {[%emt 0:00:00]} O-O {[%emt 0:01:32]} 6. Nd5 {[%emt 0:00:00]} Bc5 {[%emt 0:08:31]} 7. a3 {[%emt 0:05:59]} a5 {[%emt 0:02:57]} 8. Nxe5 {[%emt 0:06:57]} Nxe5 {[%emt 0:01:12]} 9. d4 {[%emt 0:00:11]} Nxd5 {[%emt 0:04:51]} 10. cxd5 {[%emt 0:00:17]} Bxd4 {[%emt 0:05:29]} 11. exd4 {[%emt 0:00:39]} Ng6 {[%emt 0:07:13]} 12. Be3 {[%emt 0:00:49]} c6 {[%emt 0:08:10]} 13. Bc4 {[%emt 0:02:36]} Ne7 {[%emt 0:02:28]} 14. d6 {[%emt 0:01:03]} Ng6 {[%emt 0:00:51]} 15. Qf5 {[%emt 0:05:15]} a4 {[%emt 0:04:37]} 16. O-O {[%emt 0:01:59]} Ra5 {[%emt 0:00:28]} 17. d5 {[%emt 0:00:58]} b5 {[%emt 0:11:21]} 18. Ba2 {[%emt 0:00:27]} Bb7 {[%emt 0:00:26]} 19. Bg5 {[%emt 0:02:12]} Qb6 {[%emt 0:03:56]} 20. Be7 {[%emt 0:00:35]} Rb8 {[%emt 0:05:08]} 21. dxc6 {[%emt 0:03:11]} Qxc6 {[%emt 0:00:08]} 22. Bxf7+ {[%emt 0:01:42]} Kh8 {[%emt 0:00:05]} 23. f3 {[%emt 0:00:43]} Qb6+ {[%emt 0:00:25]} 24. Kh1 {[%emt 0:00:03]} b4 {[%emt 0:00:07]} 25. Qxd7 {[%emt 0:00:29]} Ne5 {[%emt 0:02:14]} 26. Qc7 {[%emt 0:00:35]} Qa7 {[%emt 0:00:54]} 27. axb4 {[%emt 0:01:31]} Ra6 {[%emt 0:00:39]} 28. b5 {[%emt 0:00:44]} Ra5 {[%emt 0:00:11]} 29. b4 {[%emt 0:00:20]} Rxb5 {[%emt 0:00:56]} 30. Rxa4 {[%emt 0:00:11]} 1-0

[Event "Vasteras Open 2018"]
[Site "Vasteras"]
[Date "2018.09.30"]
[Round "8"]
[White "Livner, Anders"]
[Black "Janse, Love"]
[Result "1-0"]
[ECO "A10"]
[WhiteElo "2372"]
[BlackElo "2214"]
[Annotator "NA"]
[PlyCount "118"]
[EventDate "2018.09.28"]
[EventCountry "SWE"]
[SourceTitle "playchess.com"]
[Source "ChessBase"]
[SourceQuality "1"]
[TimeControl "5400+30"]

1. c4 {[%emt 0:00:00]} f5 {[%emt 0:00:32]} 2. g3 {[%emt 0:00:00]} Nf6 {[%emt 0:00:02]} 3. Bg2 {[%emt 0:00:02]} d6 {[%emt 0:00:05]} 4. Nc3 {[%emt 0:00:13]} g6 {[%emt 0:00:16]} 5. d3 {[%emt 0:00:15]} Bg7 {[%emt 0:00:09]} 6. e4 {[%emt 0:00:09]} e5 {[%emt 0:00:13]} 7. Nge2 {[%emt 0:00:20]} Nc6 {[%emt 0:00:09]} 8. O-O {[%emt 0:00:41]} O-O {[%emt 0:00:12]} 9. Nd5 {[%emt 0:00:32]} Ne7 {[%emt 0:00:19]} 10. Nxf6+ {[%emt 0:01:11]} Bxf6 {[%emt 0:00:02]} 11. Bh6 {[%emt 0:00:34]} Rf7 {[%emt 0:00:32]} 12. Qd2 {[%emt 0:00:36]} c6 {[%emt 0:00:50]} 13. Rad1 {[%emt 0:03:22]} Be6 {[%emt 0:01:57]} 14. Rfe1 {[%emt 0:00:58]} d5 {[%emt 0:05:33]} 15. exd5 {[%emt 0:03:44]} cxd5 {[%emt 0:00:07]} 16. Nf4 {[%emt 0:08:47]} Qd7 {[%emt 0:04:13]} 17. Nxe6 {[%emt 0:00:41]} Qxe6 {[%emt 0:00:03]} 18. Qa5 {[%emt 0:03:24]} Qb6 {[%emt 0:09:12]} 19. Qxb6 {[%emt 0:02:10]} axb6 {[%emt 0:00:01]} 20. cxd5 {[%emt 0:07:21]} Rd8 {[%emt 0:00:35]} 21. d6 {[%emt 0:09:39]} Rxd6 {[%emt 0:00:58]} 22. Bxb7 {[%emt 0:01:00]} Nd5 {[%emt 0:08:08]} 23. Ba6 {[%emt 0:01:26]} g5 {[%emt 0:00:25]} 24. Bc4 {[%emt 0:05:01]} Rfd7 {[%emt 0:02:03]} 25. h4 {[%emt 0:15:36]} gxh4 {[%emt 0:02:37]} 26. gxh4 {[%emt 0:08:55]} Kf7 {[%emt 0:01:53]} 27. h5 {[%emt 0:05:40]} f4 {[%emt 0:04:29]} 28. Kg2 {[%emt 0:02:12]} Bh8 {[%emt 0:03:24]} 29. Bg5 {[%emt 0:00:36]} h6 {[%emt 0:00:24]} 30. Bh4 {[%emt 0:01:16]} Ke6 {[%emt 0:05:25]} 31. Kf3 {[%emt 0:02:03]} Kf5 {[%emt 0:03:01]} 32. a3 {[%emt 0:05:08]} Nc7 {[%emt 0:04:42]} 33. Ke2 {[%emt 0:01:15]} Ne6 {[%emt 0:06:13]} 34. Bxe6+ {[%emt 0:00:03]} Rxe6 {[%emt 0:00:09]} 35. f3 {[%emt 0:02:05]} Bf6 {[%emt 0:02:25]} 36. Bxf6 {[%emt 0:02:55]} Rxf6 {[%emt 0:00:07]} 37. Rg1 {[%emt 0:00:48]} Rfd6 {[%emt 0:00:33]} 38. Rg8 {[%emt 0:00:52]} Rc7 {[%emt 0:07:15]} 39. Rf8+ {[%emt 0:03:37]} Ke6 {[%emt 0:00:32]} 40. Re8+ {[%emt 0:00:27]} Kd5 {[%emt 0:00:40]} 41. d4 {[%emt 0:01:48]} exd4 {[%emt 0:01:43]} 42. Re4 {[%emt 0:00:41]} Rc4 {[%emt 0:01:53]} 43. Rxf4 {[%emt 0:00:39]} Re6+ {[%emt 0:02:21]} 44. Kd2 {[%emt 0:00:03]} d3 {[%emt 0:02:27]} 45. Rxc4 {[%emt 0:01:44]} Kxc4 {[%emt 0:00:02]} 46. Re1 {[%emt 0:00:37]} Rd6 {[%emt 0:01:14]} 47. Re3 {[%emt 0:00:53]} Rd5 {[%emt 0:01:48]} 48. b3+ {[%emt 0:00:37]} Kc5 {[%emt 0:03:25]} 49. Rxd3 {[%emt 0:00:04]} Rxh5 {[%emt 0:00:04]} 50. Ke3 {[%emt 0:00:24]} Rh1 {[%emt 0:03:23]} 51. Kf2 {[%emt 0:00:27]} h5 {[%emt 0:00:35]} 52. Kg2 {[%emt 0:00:46]} Ra1 {[%emt 0:01:20]} 53. f4 {[%emt 0:00:17]} Kb5 {[%emt 0:02:38]} 54. a4+ {[%emt 0:00:07]} Kb4 {[%emt 0:00:18]} 55. f5 {[%emt 0:00:35]} Rc1 {[%emt 0:00:22]} 56. Rf3 {[%emt 0:01:02]} Rc7 {[%emt 0:00:34]} 57. f6 {[%emt 0:00:36]} Rf7 {[%emt 0:00:03]} 58. Kg3 {[%emt 0:00:16]} Kc5 {[%emt 0:00:31]} 59. Kh4 {[%emt 0:00:17]} Kd5 1-0

[Event "Vasteras Open 2018"]
[Site "Vasteras"]
[Date "2018.09.30"]
[Round "8"]
[White "Seo, Jung Min"]
[Black "Ragnarsson, Dagur"]
[Result "0-1"]
[ECO "D86"]
[WhiteElo "2360"]
[BlackElo "2249"]
[Annotator "NA"]
[PlyCount "60"]
[EventDate "2018.09.28"]
[EventCountry "SWE"]
[SourceTitle "playchess.com"]
[Source "ChessBase"]
[SourceQuality "1"]
[TimeControl "5400+30"]

1. c4 {[%emt 0:00:00]} Nf6 {[%emt 0:00:00]} 2. d4 g6 {[%emt 0:00:00]} 3. Nc3 {[%emt 0:01:27]} d5 {[%emt 0:00:01]} 4. cxd5 {[%emt 0:04:16]} Nxd5 {[%emt 0:00:12]} 5. e4 {[%emt 0:00:21]} Nxc3 {[%emt 0:00:07]} 6. bxc3 {[%emt 0:00:02]} Bg7 {[%emt 0:00:11]} 7. Bc4 {[%emt 0:00:26]} c5 {[%emt 0:00:09]} 8. Ne2 {[%emt 0:00:04]} O-O {[%emt 0:00:08]} 9. O-O {[%emt 0:00:47]} Nc6 {[%emt 0:00:09]} 10. Be3 {[%emt 0:00:10]} Bd7 {[%emt 0:00:49]} 11. Rc1 {[%emt 0:03:20]} Rc8 {[%emt 0:03:11]} 12. f3 {[%emt 0:09:18]} Qa5 {[%emt 0:08:51]} 13. Bb3 {[%emt 0:09:43]} Rfd8 {[%emt 0:05:22]} 14. h3 {[%emt 0:09:43]} Qa6 {[%emt 0:10:44]} 15. d5 {[%emt 0:09:49]} Ne5 {[%emt 0:00:07]} 16. a4 {[%emt 0:05:27]} Nd3 {[%emt 0:07:43]} 17. Rb1 {[%emt 0:02:01]} c4 {[%emt 0:01:12]} 18. Bc2 {[%emt 0:00:11]} e6 {[%emt 0:00:37]} 19. dxe6 {[%emt 0:01:15]} fxe6 {[%emt 0:01:33]} 20. Bg5 {[%emt 0:05:54]} Re8 {[%emt 0:00:06]} 21. Nd4 {[%emt 0:01:58]} Rc5 {[%emt 0:01:57]} 22. Qd2 {[%emt 0:03:19]} Bxa4 {[%emt 0:05:04]} 23. Bxa4 {[%emt 0:02:17]} Qxa4 {[%emt 0:00:18]} 24. Rxb7 {[%emt 0:00:20]} Qa6 {[%emt 0:11:29]} 25. Rd7 {[%emt 0:04:47]} Ra5 {[%emt 0:04:43]} 26. Re7 {[%emt 0:11:34]} Rxe7 {[%emt 0:00:17]} 27. Bxe7 {[%emt 0:00:01]} Ra2 {[%emt 0:00:16]} 28. Qg5 {[%emt 0:00:11]} e5 {[%emt 0:02:43]} 29. Rb1 {[%emt 0:00:15]} Nf4 {[%emt 0:03:14]} 30. Rb8+ {[%emt 0:00:08]} Kf7 {[%emt 0:00:05]} 0-1

[Event "Vasteras Open 2018"]
[Site "Vasteras"]
[Date "2018.09.30"]
[Round "8"]
[White "Kucuksari, Kaan"]
[Black "Johansson, Gunnar"]
[Result "1/2-1/2"]
[ECO "D04"]
[WhiteElo "2327"]
[BlackElo "2252"]
[Annotator "NA"]
[PlyCount "93"]
[EventDate "2018.09.28"]
[EventCountry "SWE"]
[SourceTitle "playchess.com"]
[Source "ChessBase"]
[SourceQuality "1"]
[TimeControl "5400+30"]

1. d4 {[%emt 0:00:00]} d5 {[%emt 0:00:00]} 2. Nf3 {[%emt 0:00:00]} Nf6 {[%emt 0:00:00]} 3. e3 {[%emt 0:00:00]} c5 {[%emt 0:00:42]} 4. Nbd2 {[%emt 0:00:12]} e6 {[%emt 0:03:00]} 5. c3 {[%emt 0:00:06]} Nc6 {[%emt 0:00:40]} 6. Bd3 {[%emt 0:00:09]} Bd6 {[%emt 0:01:45]} 7. O-O {[%emt 0:00:08]} O-O {[%emt 0:00:42]} 8. dxc5 {[%emt 0:00:07]} Bxc5 {[%emt 0:00:07]} 9. e4 {[%emt 0:00:09]} Qc7 {[%emt 0:21:50]} 10. exd5 {[%emt 0:00:07]} exd5 {[%emt 0:00:20]} 11. Nb3 {[%emt 0:00:07]} Bd6 {[%emt 0:02:41]} 12. h3 {[%emt 0:01:22]} Bd7 {[%emt 0:04:46]} 13. Be3 {[%emt 0:06:58]} Rfe8 {[%emt 0:02:23]} 14. Nbd4 {[%emt 0:03:14]} a6 {[%emt 0:08:12]} 15. Re1 {[%emt 0:10:52]} h6 {[%emt 0:05:41]} 16. Qc2 {[%emt 0:06:39]} Na5 {[%emt 0:04:41]} 17. Nf5 {[%emt 0:03:57]} Bxf5 {[%emt 0:01:24]} 18. Bxf5 {[%emt 0:00:29]} Nc6 {[%emt 0:01:25]} 19. Rad1 {[%emt 0:12:50]} Re7 {[%emt 0:03:48]} 20. Qa4 {[%emt 0:02:41]} Ne5 {[%emt 0:04:27]} 21. Nxe5 {[%emt 0:02:06]} Rxe5 {[%emt 0:00:11]} 22. Bc2 {[%emt 0:08:53]} Rae8 {[%emt 0:00:31]} 23. Rf1 {[%emt 0:01:38]} R5e7 {[%emt 0:02:38]} 24. Qd4 {[%emt 0:01:31]} Re6 {[%emt 0:05:24]} 25. Qd3 {[%emt 0:06:08]} Bc5 {[%emt 0:01:45]} 26. Bxc5 {[%emt 0:05:39]} Qxc5 {[%emt 0:00:02]} 27. b4 {[%emt 0:01:40]} Qc7 {[%emt 0:04:16]} 28. Bb3 {[%emt 0:02:12]} Rc6 {[%emt 0:00:58]} 29. Rc1 {[%emt 0:01:50]} Rc8 {[%emt 0:01:00]} 30. Rfd1 {[%emt 0:04:47]} Rxc3 {[%emt 0:00:32]} 31. Rxc3 {[%emt 0:00:20]} Qxc3 {[%emt 0:00:06]} 32. Qxc3 {[%emt 0:00:29]} Rxc3 {[%emt 0:00:03]} 33. Bxd5 {[%emt 0:02:14]} Nxd5 {[%emt 0:00:07]} 34. Rxd5 {[%emt 0:00:01]} Rc1+ {[%emt 0:00:30]} 35. Kh2 {[%emt 0:00:01]} Rc2 {[%emt 0:00:12]} 36. Rd8+ {[%emt 0:07:48]} Kh7 {[%emt 0:00:16]} 37. Rd7 {[%emt 0:00:15]} Rxf2 {[%emt 0:06:08]} 38. Rxb7 {[%emt 0:00:52]} Rxa2 {[%emt 0:00:46]} 39. Rxf7 Ra4 {[%emt 0:01:22]} 40. Rb7 {[%emt 0:00:10]} a5 {[%emt 0:00:17]} 41. b5 {[%emt 0:01:04]} Rb4 {[%emt 0:00:07]} 42. Kg3 {[%emt 0:00:45]} a4 {[%emt 0:00:15]} 43. Kf3 {[%emt 0:00:17]} a3 {[%emt 0:00:07]} 44. Ra7 {[%emt 0:00:03]} Rxb5 {[%emt 0:00:24]} 45. Rxa3 {[%emt 0:00:05]} h5 {[%emt 0:00:10]} 46. Kf4 {[%emt 0:00:08]} Kh6 {[%emt 0:01:13]} 47. Ke4 1/2-1/2